[Event "Late-Titled-Tuesday-Blitz-January-23-2024"]
[Site "Chess.com"]
[Date "2024.01.23"]
[Round "7"]
[White "Alexei_Gubajdullin"]
[Black "el008"]
[Result "1/2-1/2"]
[WhiteElo "2599"]
[BlackElo "2474"]
[TimeControl "180+1"]
[EndTime "15:13:11 PST"]
[Termination "Game drawn by repetition"]

1. e4 {[%clk 0:02:53.1]} 1... e6 {[%clk 0:02:58.5]} 2. Qe2 {[%clk 0:02:50.3]}
2... c5 {[%clk 0:02:50.4]} 3. Nf3 {[%clk 0:02:50.2]} 3... Nc6 {[%clk 0:02:50.9]}
4. g3 {[%clk 0:02:49.2]} 4... g6 {[%clk 0:02:51.5]} 5. Bg2 {[%clk 0:02:49.2]}
5... Bg7 {[%clk 0:02:52.2]} 6. O-O {[%clk 0:02:49.2]} 6... Nge7 {[%clk
0:02:52.9]} 7. c3 {[%clk 0:02:49.4]} 7... O-O {[%clk 0:02:53.1]} 8. d4 {[%clk
0:02:48.6]} 8... cxd4 {[%clk 0:02:53.1]} 9. cxd4 {[%clk 0:02:48.8]} 9... Nxd4
{[%clk 0:02:54]} 10. Nxd4 {[%clk 0:02:48.7]} 10... Bxd4 {[%clk 0:02:54.9]} 11.
Bh6 {[%clk 0:02:47.9]} 11... Bg7 {[%clk 0:02:54.8]} 12. Bxg7 {[%clk 0:02:45.3]}
12... Kxg7 {[%clk 0:02:55.7]} 13. Nc3 {[%clk 0:02:40.5]} 13... a6 {[%clk
0:02:47.6]} 14. Rfd1 {[%clk 0:02:39.2]} 14... b5 {[%clk 0:02:47.7]} 15. e5
{[%clk 0:02:38.8]} 15... Ra7 {[%clk 0:02:46.8]} 16. Ne4 {[%clk 0:02:35.5]} 16...
Bb7 {[%clk 0:02:43.7]} 17. Qe3 {[%clk 0:02:31.8]} 17... Qb8 {[%clk 0:02:29.5]}
18. Rxd7 {[%clk 0:02:28.2]} 18... Nf5 {[%clk 0:02:20.9]} 19. Qb6 {[%clk
0:02:21.4]} 19... Qxe5 {[%clk 0:01:48.3]} 20. Rxb7 {[%clk 0:02:13]} 20... Rxb7
{[%clk 0:01:49.2]} 21. Qxb7 {[%clk 0:02:13]} 21... Qxb2 {[%clk 0:01:49.9]} 22.
Rd1 {[%clk 0:02:08.8]} 22... Qxa2 {[%clk 0:01:49.8]} 23. Ng5 {[%clk 0:02:07.4]}
23... h6 {[%clk 0:01:39.4]} 24. Bd5 {[%clk 0:01:30.3]} 24... Qe2 {[%clk
0:01:39.1]} 25. Nxe6+ {[%clk 0:01:17]} 25... Kg8 {[%clk 0:01:04.2]} 26. Nxf8
{[%clk 0:00:44]} 26... Qxd1+ {[%clk 0:01:04.2]} 27. Kg2 {[%clk 0:00:44.2]} 27...
Ne3+ {[%clk 0:01:05.1]} 28. fxe3 {[%clk 0:00:43.7]} 28... Qe2+ {[%clk
0:01:05.4]} 29. Kg1 {[%clk 0:00:41.4]} 29... Qe1+ {[%clk 0:01:04.6]} 30. Kg2
{[%clk 0:00:40.8]} 30... Qe2+ {[%clk 0:01:05.5]} 31. Kg1 {[%clk 0:00:40.6]}
31... Qe1+ {[%clk 0:01:05.9]} 32. Kg2 {[%clk 0:00:39.4]} 32... Qe2+ {[%clk
0:01:06.8]} 1/2-1/2

[Event "Late-Titled-Tuesday-Blitz-January-23-2024"]
[Site "Chess.com"]
[Date "2024.01.23"]
[Round "7"]
[White "DanylaBagrov"]
[Black "Roedor"]
[Result "1-0"]
[WhiteElo "2533"]
[BlackElo "2341"]
[TimeControl "180+1"]
[EndTime "15:13:18 PST"]
[Termination "DanylaBagrov won by resignation"]

1. d4 {[%clk 0:02:57]} 1... Nf6 {[%clk 0:02:59.6]} 2. c4 {[%clk 0:02:54.7]} 2...
g6 {[%clk 0:02:59.6]} 3. Nc3 {[%clk 0:02:54.5]} 3... d5 {[%clk 0:02:59.8]} 4.
cxd5 {[%clk 0:02:53]} 4... Nxd5 {[%clk 0:03:00.7]} 5. e4 {[%clk 0:02:53.3]} 5...
Nxc3 {[%clk 0:03:01.1]} 6. bxc3 {[%clk 0:02:54.2]} 6... Bg7 {[%clk 0:03:01.6]}
7. Nf3 {[%clk 0:02:54.6]} 7... O-O {[%clk 0:03:01.7]} 8. Be2 {[%clk 0:02:51.1]}
8... c5 {[%clk 0:03:01.7]} 9. O-O {[%clk 0:02:49.8]} 9... Nc6 {[%clk 0:03:01.3]}
10. Be3 {[%clk 0:02:49.6]} 10... Qa5 {[%clk 0:03:00.8]} 11. d5 {[%clk
0:02:41.6]} 11... Ne5 {[%clk 0:02:57.5]} 12. Nd2 {[%clk 0:02:28.1]} 12... b5
{[%clk 0:02:30.1]} 13. Bxc5 {[%clk 0:02:20.3]} 13... Qc7 {[%clk 0:01:40.8]} 14.
Bd4 {[%clk 0:02:04.2]} 14... b4 {[%clk 0:01:11.8]} 15. cxb4 {[%clk 0:01:58.2]}
15... Ng4 {[%clk 0:01:04.5]} 16. Nf3 {[%clk 0:01:45.8]} 16... e5 {[%clk
0:00:54.4]} 17. Rc1 {[%clk 0:01:37.8]} 17... Qb8 {[%clk 0:00:46.6]} 18. Bc5
{[%clk 0:01:36.2]} 18... Rd8 {[%clk 0:00:45.4]} 19. Bc4 {[%clk 0:01:27.2]} 19...
a5 {[%clk 0:00:42.9]} 20. b5 {[%clk 0:01:24.1]} 20... Nf6 {[%clk 0:00:38]} 21.
Re1 {[%clk 0:01:15.8]} 21... Nd7 {[%clk 0:00:36.7]} 22. Be7 {[%clk 0:01:12.5]}
22... Re8 {[%clk 0:00:36.1]} 23. d6 {[%clk 0:01:12.6]} 23... Nb6 {[%clk
0:00:33.7]} 24. Bxf7+ {[%clk 0:01:02.7]} 24... Kxf7 {[%clk 0:00:33.4]} 25. Qb3+
{[%clk 0:01:02.9]} 1-0

[Event "Late-Titled-Tuesday-Blitz-January-23-2024"]
[Site "Chess.com"]
[Date "2024.01.23"]
[Round "7"]
[White "mightysmasher"]
[Black "EcosseKillie"]
[Result "1-0"]
[WhiteElo "2573"]
[BlackElo "2284"]
[TimeControl "180+1"]
[EndTime "15:13:18 PST"]
[Termination "mightysmasher won by resignation"]

1. e4 {[%clk 0:03:00.9]} 1... Nf6 {[%clk 0:02:59.8]} 2. e5 {[%clk 0:03:00.6]}
2... Nd5 {[%clk 0:03:00.3]} 3. c4 {[%clk 0:03:01.1]} 3... Nb6 {[%clk 0:03:00.3]}
4. d4 {[%clk 0:03:01.7]} 4... d6 {[%clk 0:03:00.4]} 5. exd6 {[%clk 0:03:02.6]}
5... cxd6 {[%clk 0:03:00.2]} 6. Nf3 {[%clk 0:03:03]} 6... g6 {[%clk 0:03:00.9]}
7. Nc3 {[%clk 0:03:03.1]} 7... Bg7 {[%clk 0:03:00.5]} 8. Be2 {[%clk 0:03:01.1]}
8... Bg4 {[%clk 0:03:00.6]} 9. O-O {[%clk 0:03:01.4]} 9... Nc6 {[%clk
0:02:59.4]} 10. Be3 {[%clk 0:02:48.5]} 10... Bxf3 {[%clk 0:02:55.1]} 11. Bxf3
{[%clk 0:02:47.7]} 11... Nxc4 {[%clk 0:02:54.9]} 12. Bxc6+ {[%clk 0:02:30.4]}
12... bxc6 {[%clk 0:02:55.8]} 13. Qa4 {[%clk 0:02:30.2]} 13... Nb6 {[%clk
0:02:32.6]} 14. Qxc6+ {[%clk 0:02:28.6]} 14... Qd7 {[%clk 0:02:33.2]} 15. Qxd7+
{[%clk 0:02:28.5]} 15... Kxd7 {[%clk 0:02:34.1]} 16. b3 {[%clk 0:02:27.1]} 16...
Rac8 {[%clk 0:02:31.5]} 17. Nb5 {[%clk 0:02:26]} 17... a6 {[%clk 0:02:21.7]} 18.
Na3 {[%clk 0:02:25.3]} 18... d5 {[%clk 0:02:07.1]} 19. Rac1 {[%clk 0:02:20]}
19... Rxc1 {[%clk 0:02:07]} 20. Rxc1 {[%clk 0:02:19.6]} 20... Rc8 {[%clk
0:02:07.9]} 21. Rxc8 {[%clk 0:02:19.3]} 21... Kxc8 {[%clk 0:02:08.4]} 22. Nc2
{[%clk 0:02:19.8]} 22... Kd7 {[%clk 0:02:00.5]} 23. Kf1 {[%clk 0:02:19.7]} 23...
Kc6 {[%clk 0:01:55.2]} 24. Ke2 {[%clk 0:02:19.4]} 24... a5 {[%clk 0:01:52.2]}
25. Kd3 {[%clk 0:02:18.1]} 25... Kb5 {[%clk 0:01:47.3]} 26. Na3+ {[%clk
0:02:11.1]} 26... Kc6 {[%clk 0:01:46.5]} 27. Bd2 {[%clk 0:02:09.2]} 27... a4
{[%clk 0:01:41.6]} 28. b4 {[%clk 0:02:08.5]} 28... f6 {[%clk 0:01:38.1]} 29. b5+
{[%clk 0:02:07.4]} 29... Kb7 {[%clk 0:01:33.9]} 30. Nc2 {[%clk 0:02:06.6]} 30...
e5 {[%clk 0:01:34.1]} 31. Nb4 {[%clk 0:02:03.1]} 31... e4+ {[%clk 0:01:30.2]}
32. Ke2 {[%clk 0:02:02.5]} 32... f5 {[%clk 0:01:28.1]} 33. Bc3 {[%clk
0:02:01.8]} 33... Kc7 {[%clk 0:01:25.7]} 34. Na6+ {[%clk 0:02:01.4]} 34... Kd6
{[%clk 0:01:23.6]} 35. Bb4+ {[%clk 0:02:00.7]} 35... Ke6 {[%clk 0:01:24.2]} 36.
Bc5 {[%clk 0:02:00.2]} 36... Nd7 {[%clk 0:00:50.6]} 37. b6 {[%clk 0:01:50.6]}
37... Nxc5 {[%clk 0:00:49.7]} 38. dxc5 {[%clk 0:01:45.3]} 38... d4 {[%clk
0:00:45.7]} 39. b7 {[%clk 0:01:42.1]} 39... d3+ {[%clk 0:00:46.6]} 40. Kd1
{[%clk 0:01:41]} 40... Be5 {[%clk 0:00:47.5]} 41. c6 {[%clk 0:01:40.8]} 41... f4
{[%clk 0:00:42.4]} 42. c7 {[%clk 0:01:40.7]} 42... Bxc7 {[%clk 0:00:39.2]} 43.
Nxc7+ {[%clk 0:01:40.3]} 1-0

[Event "Late-Titled-Tuesday-Blitz-January-23-2024"]
[Site "Chess.com"]
[Date "2024.01.23"]
[Round "7"]
[White "familijatop71"]
[Black "deloewre"]
[Result "1-0"]
[WhiteElo "2253"]
[BlackElo "2002"]
[TimeControl "180+1"]
[EndTime "15:13:20 PST"]
[Termination "familijatop71 won on time"]

1. e4 {[%clk 0:03:00.9]} 1... c6 {[%clk 0:02:59.4]} 2. d4 {[%clk 0:03:00]} 2...
d5 {[%clk 0:02:58.4]} 3. e5 {[%clk 0:03:00.4]} 3... Bf5 {[%clk 0:02:56.9]} 4.
Nf3 {[%clk 0:03:00.8]} 4... e6 {[%clk 0:02:55.8]} 5. Be2 {[%clk 0:03:01.2]} 5...
c5 {[%clk 0:02:50.9]} 6. O-O {[%clk 0:03:00.4]} 6... Nc6 {[%clk 0:02:49.3]} 7.
c3 {[%clk 0:03:00.8]} 7... cxd4 {[%clk 0:02:34.6]} 8. cxd4 {[%clk 0:02:59.4]}
8... Nge7 {[%clk 0:02:19.7]} 9. a3 {[%clk 0:02:58.9]} 9... Nc8 {[%clk
0:02:17.3]} 10. b4 {[%clk 0:02:57.1]} 10... Nb6 {[%clk 0:02:15.6]} 11. Nbd2
{[%clk 0:02:55.8]} 11... Be7 {[%clk 0:02:13.6]} 12. Bb2 {[%clk 0:02:54.2]} 12...
O-O {[%clk 0:02:09]} 13. Rc1 {[%clk 0:02:54.2]} 13... Rc8 {[%clk 0:01:53.8]} 14.
h3 {[%clk 0:02:52]} 14... Qd7 {[%clk 0:01:42.3]} 15. Nb3 {[%clk 0:02:44.7]}
15... a5 {[%clk 0:01:30.5]} 16. b5 {[%clk 0:02:41.5]} 16... Na7 {[%clk
0:01:18.4]} 17. Nc5 {[%clk 0:02:18.5]} 17... Bxc5 {[%clk 0:00:55]} 18. dxc5
{[%clk 0:02:19.4]} 18... Na8 {[%clk 0:00:45.5]} 19. a4 {[%clk 0:02:15.8]} 19...
b6 {[%clk 0:00:41.2]} 20. c6 {[%clk 0:02:08.5]} 20... Qe7 {[%clk 0:00:33.6]} 21.
Nd4 {[%clk 0:02:03.8]} 21... Bg6 {[%clk 0:00:28.9]} 22. Bd3 {[%clk 0:02:03.4]}
22... Nc7 {[%clk 0:00:24.5]} 23. Qb3 {[%clk 0:01:48.9]} 23... Rfd8 {[%clk
0:00:22.3]} 24. Ba3 {[%clk 0:01:46.8]} 24... Qe8 {[%clk 0:00:20.7]} 25. f4
{[%clk 0:01:40.6]} 25... Rb8 {[%clk 0:00:14.9]} 26. Bd6 {[%clk 0:01:36.9]} 26...
Rdc8 {[%clk 0:00:06.3]} 27. Rce1 {[%clk 0:01:32.1]} 27... Qd8 {[%clk 0:00:03]}
28. f5 {[%clk 0:01:27.9]} 1-0

[Event "Late-Titled-Tuesday-Blitz-January-23-2024"]
[Site "Chess.com"]
[Date "2024.01.23"]
[Round "7"]
[White "FredddieCroderg"]
[Black "Cubitas"]
[Result "1/2-1/2"]
[WhiteElo "2397"]
[BlackElo "2726"]
[TimeControl "180+1"]
[EndTime "15:13:28 PST"]
[Termination "Game drawn - insufficient material"]

1. d4 {[%clk 0:03:00.9]} 1... Nf6 {[%clk 0:02:59.4]} 2. c4 {[%clk 0:03:00.8]}
2... g6 {[%clk 0:03:00]} 3. Nc3 {[%clk 0:02:59]} 3... Bg7 {[%clk 0:03:00.5]} 4.
e4 {[%clk 0:02:58.2]} 4... O-O {[%clk 0:03:00.5]} 5. Be2 {[%clk 0:02:58.2]} 5...
d6 {[%clk 0:03:00.4]} 6. Nf3 {[%clk 0:02:58.3]} 6... e5 {[%clk 0:02:58.7]} 7.
dxe5 {[%clk 0:02:57.9]} 7... dxe5 {[%clk 0:02:59.6]} 8. Qxd8 {[%clk 0:02:57.7]}
8... Rxd8 {[%clk 0:03:00.5]} 9. Bg5 {[%clk 0:02:57.4]} 9... Re8 {[%clk
0:02:59.9]} 10. Nd5 {[%clk 0:02:56.5]} 10... Nxd5 {[%clk 0:02:58.9]} 11. cxd5
{[%clk 0:02:56.7]} 11... c6 {[%clk 0:02:58.9]} 12. Bc4 {[%clk 0:02:56.7]} 12...
cxd5 {[%clk 0:02:58.5]} 13. Bxd5 {[%clk 0:02:56.9]} 13... Nd7 {[%clk 0:02:59.2]}
14. Nd2 {[%clk 0:02:53.9]} 14... h6 {[%clk 0:02:58.4]} 15. Be3 {[%clk 0:02:52]}
15... Nb6 {[%clk 0:02:51.4]} 16. Bb3 {[%clk 0:02:49.1]} 16... Be6 {[%clk
0:02:50.5]} 17. Bxe6 {[%clk 0:02:46.5]} 17... Rxe6 {[%clk 0:02:51.4]} 18. O-O
{[%clk 0:02:45.1]} 18... Rc6 {[%clk 0:02:48.1]} 19. Rfc1 {[%clk 0:02:42.3]}
19... Rac8 {[%clk 0:02:48.6]} 20. Rxc6 {[%clk 0:02:42]} 20... Rxc6 {[%clk
0:02:49.5]} 21. a4 {[%clk 0:02:33]} 21... a6 {[%clk 0:02:35.4]} 22. a5 {[%clk
0:02:20]} 22... Nc4 {[%clk 0:02:28.1]} 23. Nxc4 {[%clk 0:02:19.5]} 23... Rxc4
{[%clk 0:02:27.2]} 24. Rd1 {[%clk 0:02:13]} 24... Rxe4 {[%clk 0:02:16]} 25. Rd7
{[%clk 0:02:07]} 25... Rb4 {[%clk 0:02:13.7]} 26. h3 {[%clk 0:01:51.1]} 26...
Rxb2 {[%clk 0:02:11.8]} 27. Bb6 {[%clk 0:01:50.7]} 27... h5 {[%clk 0:02:02.8]}
28. Rxb7 {[%clk 0:01:50]} 28... e4 {[%clk 0:02:00.5]} 29. Ra7 {[%clk 0:01:48.5]}
29... h4 {[%clk 0:01:52]} 30. Rxa6 {[%clk 0:01:47.2]} 30... Rb1+ {[%clk
0:01:49.1]} 31. Kh2 {[%clk 0:01:45.4]} 31... Be5+ {[%clk 0:01:48.8]} 32. g3
{[%clk 0:01:44]} 32... hxg3+ {[%clk 0:01:49.4]} 33. fxg3 {[%clk 0:01:43.6]}
33... Rb2+ {[%clk 0:01:45.6]} 34. Kg1 {[%clk 0:01:43.1]} 34... Bxg3 {[%clk
0:01:39.8]} 35. Bd4 {[%clk 0:01:42.4]} 35... Rb8 {[%clk 0:01:32.8]} 36. Rb6
{[%clk 0:01:38.1]} 36... Rxb6 {[%clk 0:01:12.1]} 37. Bxb6 {[%clk 0:01:24.3]}
37... Kh7 {[%clk 0:01:02.3]} 38. a6 {[%clk 0:01:24.2]} 38... Bb8 {[%clk
0:01:02.4]} 39. a7 {[%clk 0:01:24.4]} 39... Bxa7 {[%clk 0:01:02.4]} 40. Bxa7
{[%clk 0:01:24.7]} 40... Kh6 {[%clk 0:01:03.1]} 41. Kg2 {[%clk 0:01:23.9]} 41...
Kh5 {[%clk 0:01:03.3]} 42. Kg3 {[%clk 0:01:16.2]} 42... g5 {[%clk 0:01:03]} 43.
Be3 {[%clk 0:01:09.5]} 43... f5 {[%clk 0:01:02.9]} 44. Bd2 {[%clk 0:01:03.2]}
44... f4+ {[%clk 0:01:03]} 45. Bxf4 {[%clk 0:00:58]} 45... gxf4+ {[%clk
0:01:03.9]} 46. Kxf4 {[%clk 0:00:58]} 46... Kh4 {[%clk 0:01:04.3]} 47. Kxe4
{[%clk 0:00:58.2]} 47... Kxh3 {[%clk 0:01:05]} 1/2-1/2

[Event "Late-Titled-Tuesday-Blitz-January-23-2024"]
[Site "Chess.com"]
[Date "2024.01.23"]
[Round "7"]
[White "Piotrek1979"]
[Black "yobdc"]
[Result "0-1"]
[WhiteElo "2399"]
[BlackElo "2551"]
[TimeControl "180+1"]
[EndTime "15:13:42 PST"]
[Termination "yobdc won by resignation"]

1. d4 {[%clk 0:03:00.9]} 1... e6 {[%clk 0:02:57.9]} 2. c4 {[%clk 0:03:00.4]}
2... f5 {[%clk 0:02:58]} 3. Nf3 {[%clk 0:02:58.4]} 3... Nf6 {[%clk 0:02:58.3]}
4. g3 {[%clk 0:02:58.1]} 4... d5 {[%clk 0:02:58.3]} 5. Bg2 {[%clk 0:02:57.5]}
5... c6 {[%clk 0:02:58.7]} 6. O-O {[%clk 0:02:56.9]} 6... Bd6 {[%clk 0:02:58.8]}
7. Qc2 {[%clk 0:02:42.5]} 7... O-O {[%clk 0:02:57.9]} 8. Nbd2 {[%clk 0:02:41.8]}
8... Qe7 {[%clk 0:02:48.9]} 9. b3 {[%clk 0:02:39.8]} 9... Ne4 {[%clk 0:02:44.9]}
10. Bb2 {[%clk 0:02:38.2]} 10... Nd7 {[%clk 0:02:41.5]} 11. Rad1 {[%clk
0:02:32]} 11... a5 {[%clk 0:02:41.5]} 12. a4 {[%clk 0:02:25.4]} 12... b6 {[%clk
0:02:33.3]} 13. Ne5 {[%clk 0:02:16.2]} 13... Nxe5 {[%clk 0:02:21.2]} 14. dxe5
{[%clk 0:02:04.8]} 14... Bc5 {[%clk 0:02:21.2]} 15. Nxe4 {[%clk 0:01:55.5]}
15... fxe4 {[%clk 0:02:20.9]} 16. e3 {[%clk 0:01:54.6]} 16... Ba6 {[%clk
0:02:20]} 17. Bd4 {[%clk 0:01:48.3]} 17... Rad8 {[%clk 0:02:07.7]} 18. Rd2
{[%clk 0:01:43.8]} 18... Bb4 {[%clk 0:01:51.5]} 19. Bxb6 {[%clk 0:01:40.7]}
19... Rb8 {[%clk 0:01:45.4]} 20. Bd4 {[%clk 0:01:21.9]} 20... Bxd2 {[%clk
0:01:45.2]} 21. Qxd2 {[%clk 0:01:20.6]} 21... Rxb3 {[%clk 0:01:45.2]} 22. cxd5
{[%clk 0:01:09.7]} 22... cxd5 {[%clk 0:01:28.2]} 23. Rc1 {[%clk 0:01:07.7]}
23... Rfb8 {[%clk 0:01:24.3]} 24. Qxa5 {[%clk 0:00:53.1]} 24... Rb1 {[%clk
0:01:22.8]} 25. Qe1 {[%clk 0:00:53.7]} 25... Bd3 {[%clk 0:01:19.9]} 26. Bf1
{[%clk 0:00:21.2]} 26... Qa3 {[%clk 0:01:08.9]} 27. Kg2 {[%clk 0:00:02.2]} 27...
Qxc1 {[%clk 0:01:02.6]} 0-1

[Event "Late-Titled-Tuesday-Blitz-January-23-2024"]
[Site "Chess.com"]
[Date "2024.01.23"]
[Round "7"]
[White "ukchessbomber"]
[Black "Harsha_Bharathakoti"]
[Result "0-1"]
[WhiteElo "2687"]
[BlackElo "2903"]
[TimeControl "180+1"]
[EndTime "15:13:43 PST"]
[Termination "Harsha_Bharathakoti won by resignation"]

1. b4 {[%clk 0:03:00.9]} 1... Nf6 {[%clk 0:02:58.2]} 2. Bb2 {[%clk 0:03:00.8]}
2... g6 {[%clk 0:02:58.9]} 3. e3 {[%clk 0:03:01.1]} 3... Bg7 {[%clk 0:02:59.1]}
4. d4 {[%clk 0:03:02]} 4... O-O {[%clk 0:02:59.3]} 5. Nf3 {[%clk 0:03:02.6]}
5... d5 {[%clk 0:02:56]} 6. Be2 {[%clk 0:03:03.2]} 6... a5 {[%clk 0:02:56.7]} 7.
bxa5 {[%clk 0:03:01.7]} 7... Nc6 {[%clk 0:02:54.9]} 8. c4 {[%clk 0:03:00.9]}
8... Nxa5 {[%clk 0:02:54]} 9. cxd5 {[%clk 0:03:01.2]} 9... Nxd5 {[%clk
0:02:54.9]} 10. O-O {[%clk 0:03:00.6]} 10... c5 {[%clk 0:02:55.5]} 11. Nc3
{[%clk 0:02:59.7]} 11... Nc6 {[%clk 0:02:51.5]} 12. Rc1 {[%clk 0:02:56.7]} 12...
Nxc3 {[%clk 0:02:39.1]} 13. Bxc3 {[%clk 0:02:55.6]} 13... cxd4 {[%clk
0:02:34.6]} 14. exd4 {[%clk 0:02:56]} 14... Rxa2 {[%clk 0:02:34.7]} 15. d5
{[%clk 0:02:56.5]} 15... Bxc3 {[%clk 0:02:21.6]} 16. Rxc3 {[%clk 0:02:55.9]}
16... Nb8 {[%clk 0:02:17.7]} 17. h4 {[%clk 0:02:49.3]} 17... Bg4 {[%clk
0:02:09.6]} 18. Re3 {[%clk 0:02:49.7]} 18... Ra5 {[%clk 0:01:56.9]} 19. Bc4
{[%clk 0:02:48.2]} 19... Nd7 {[%clk 0:01:52.9]} 20. Rfe1 {[%clk 0:02:48.4]}
20... Nb6 {[%clk 0:01:47.3]} 21. Bb3 {[%clk 0:02:45.2]} 21... Nxd5 {[%clk
0:01:47.2]} 22. Re5 {[%clk 0:02:24.4]} 22... e6 {[%clk 0:01:45.7]} 23. h5 {[%clk
0:02:20.4]} 23... Bxh5 {[%clk 0:01:33.5]} 24. Rxh5 {[%clk 0:01:51.7]} 24... gxh5
{[%clk 0:01:34.4]} 25. Bc2 {[%clk 0:01:51.9]} 25... Nb4 {[%clk 0:01:09.7]} 26.
Bxh7+ {[%clk 0:01:38.5]} 26... Kxh7 {[%clk 0:01:10.6]} 27. Qb1+ {[%clk
0:01:38.7]} 27... Nd3 {[%clk 0:01:11.4]} 28. Re3 {[%clk 0:01:30.4]} 28... Rd5
{[%clk 0:01:02.2]} 29. Ne5 {[%clk 0:01:30.6]} 29... Rxe5 {[%clk 0:00:39]} 30.
Rxe5 {[%clk 0:01:01.4]} 30... Qd4 {[%clk 0:00:39.2]} 31. Rxh5+ {[%clk
0:00:49.3]} 31... Kg7 {[%clk 0:00:34.6]} 32. Rh3 {[%clk 0:00:42.1]} 32... Qxf2+
{[%clk 0:00:33.2]} 33. Kh1 {[%clk 0:00:42.5]} 33... Qe1+ {[%clk 0:00:33.6]} 0-1

[Event "Late-Titled-Tuesday-Blitz-January-23-2024"]
[Site "Chess.com"]
[Date "2024.01.23"]
[Round "7"]
[White "Balla_Tamas"]
[Black "miraitrunks"]
[Result "1-0"]
[WhiteElo "2456"]
[BlackElo "2105"]
[TimeControl "180+1"]
[EndTime "15:13:48 PST"]
[Termination "Balla_Tamas won on time"]

1. e4 {[%clk 0:03:00.9]} 1... c5 {[%clk 0:02:42.4]} 2. c3 {[%clk 0:03:00]} 2...
g6 {[%clk 0:02:42.1]} 3. d4 {[%clk 0:03:00.2]} 3... cxd4 {[%clk 0:02:43]} 4.
cxd4 {[%clk 0:03:01.1]} 4... d6 {[%clk 0:02:43.1]} 5. Nc3 {[%clk 0:03:00.8]}
5... Nf6 {[%clk 0:02:42.8]} 6. Nf3 {[%clk 0:03:00.9]} 6... Bg7 {[%clk
0:02:43.4]} 7. h3 {[%clk 0:03:00.1]} 7... O-O {[%clk 0:02:44]} 8. Be3 {[%clk
0:03:00.7]} 8... Nc6 {[%clk 0:02:44.2]} 9. Be2 {[%clk 0:03:01]} 9... a6 {[%clk
0:02:44.3]} 10. O-O {[%clk 0:03:01.4]} 10... b5 {[%clk 0:02:44.3]} 11. a3 {[%clk
0:03:01.6]} 11... Bb7 {[%clk 0:02:43.9]} 12. Qd2 {[%clk 0:03:01.9]} 12... Rc8
{[%clk 0:02:43.8]} 13. Bh6 {[%clk 0:03:02]} 13... Na5 {[%clk 0:02:39.2]} 14.
Bxg7 {[%clk 0:03:00.5]} 14... Kxg7 {[%clk 0:02:40.1]} 15. Qf4 {[%clk 0:02:54.4]}
15... Nb3 {[%clk 0:02:32.4]} 16. Rad1 {[%clk 0:02:53.3]} 16... Qa5 {[%clk
0:02:09.2]} 17. e5 {[%clk 0:02:45.2]} 17... Nd5 {[%clk 0:01:50.2]} 18. Nxd5
{[%clk 0:02:39.1]} 18... Bxd5 {[%clk 0:01:51.1]} 19. exd6 {[%clk 0:02:39.7]}
19... exd6 {[%clk 0:01:50.7]} 20. Qxd6 {[%clk 0:02:38.8]} 20... Bxf3 {[%clk
0:01:50.9]} 21. Bxf3 {[%clk 0:02:36.3]} 21... Rc2 {[%clk 0:01:40.4]} 22. Qe5+
{[%clk 0:02:33]} 22... Kg8 {[%clk 0:01:40.4]} 23. d5 {[%clk 0:02:24.5]} 23...
Nd2 {[%clk 0:01:37.5]} 24. Be4 {[%clk 0:02:06.9]} 24... Rc4 {[%clk 0:01:10]} 25.
Bd3 {[%clk 0:01:57.2]} 25... Nxf1 {[%clk 0:00:43.3]} 26. Bxc4 {[%clk 0:01:50.1]}
26... bxc4 {[%clk 0:00:44.2]} 27. Rxf1 {[%clk 0:01:50.1]} 27... Rd8 {[%clk
0:00:44]} 28. Rd1 {[%clk 0:01:49.8]} 28... Qb5 {[%clk 0:00:42.4]} 29. Qf6 {[%clk
0:01:44.9]} 29... Rxd5 {[%clk 0:00:38.2]} 30. Re1 {[%clk 0:01:40.7]} 30... Rf5
{[%clk 0:00:28.3]} 31. Qd8+ {[%clk 0:01:40.2]} 31... Kg7 {[%clk 0:00:28.5]} 32.
Qd4+ {[%clk 0:01:37.4]} 32... Kh6 {[%clk 0:00:25.1]} 33. Re4 {[%clk 0:01:35.5]}
33... g5 {[%clk 0:00:05.7]} 34. h4 {[%clk 0:01:23.8]} 34... Qd5 {[%clk
0:00:01.7]} 35. hxg5+ {[%clk 0:01:23.6]} 35... Rxg5 {[%clk 0:00:01.8]} 36. Qf6+
{[%clk 0:01:22.8]} 36... Rg6 {[%clk 0:00:01.8]} 37. Rh4+ {[%clk 0:01:23.1]} 1-0

[Event "Late-Titled-Tuesday-Blitz-January-23-2024"]
[Site "Chess.com"]
[Date "2024.01.23"]
[Round "7"]
[White "ansko1999"]
[Black "rasmussvane"]
[Result "0-1"]
[WhiteElo "2707"]
[BlackElo "2973"]
[TimeControl "180+1"]
[EndTime "15:13:54 PST"]
[Termination "rasmussvane won by resignation"]

1. e4 {[%clk 0:03:00.9]} 1... c6 {[%clk 0:02:57.1]} 2. d4 {[%clk 0:02:59.8]}
2... d5 {[%clk 0:02:56.7]} 3. Nd2 {[%clk 0:02:59]} 3... dxe4 {[%clk 0:02:55.8]}
4. Nxe4 {[%clk 0:02:59.9]} 4... Nf6 {[%clk 0:02:56]} 5. Nxf6+ {[%clk 0:02:59.7]}
5... exf6 {[%clk 0:02:56.9]} 6. c3 {[%clk 0:02:59.4]} 6... Bd6 {[%clk
0:02:51.9]} 7. Bd3 {[%clk 0:02:59.3]} 7... O-O {[%clk 0:02:51.7]} 8. Ne2 {[%clk
0:02:59.3]} 8... Re8 {[%clk 0:02:50.2]} 9. O-O {[%clk 0:02:59.1]} 9... Nd7
{[%clk 0:02:48.5]} 10. Ng3 {[%clk 0:02:58.8]} 10... Nf8 {[%clk 0:02:45.9]} 11.
f4 {[%clk 0:02:58.7]} 11... c5 {[%clk 0:02:42.4]} 12. d5 {[%clk 0:02:47.9]}
12... a6 {[%clk 0:02:28.3]} 13. c4 {[%clk 0:02:46]} 13... b5 {[%clk 0:02:08]}
14. b3 {[%clk 0:02:30.3]} 14... Rb8 {[%clk 0:02:03.2]} 15. Bd2 {[%clk
0:02:23.7]} 15... Ng6 {[%clk 0:01:56.7]} 16. Nf5 {[%clk 0:01:54.8]} 16... Bxf5
{[%clk 0:01:26.8]} 17. Bxf5 {[%clk 0:01:55.7]} 17... bxc4 {[%clk 0:01:27.5]} 18.
bxc4 {[%clk 0:01:55]} 18... Qc7 {[%clk 0:01:27.1]} 19. g3 {[%clk 0:01:33.9]}
19... Ne7 {[%clk 0:01:15.4]} 20. Bd3 {[%clk 0:01:32.1]} 20... Qd7 {[%clk
0:01:00.9]} 21. Qh5 {[%clk 0:01:19.5]} 21... g6 {[%clk 0:00:59.5]} 22. Qh4
{[%clk 0:01:15.2]} 22... Kg7 {[%clk 0:00:51.7]} 23. Bc3 {[%clk 0:01:11.8]} 23...
Ng8 {[%clk 0:00:51.6]} 24. Rae1 {[%clk 0:01:04.1]} 24... Rxe1 {[%clk 0:00:47.5]}
25. Rxe1 {[%clk 0:01:05]} 25... Re8 {[%clk 0:00:47.9]} 26. Rxe8 {[%clk
0:00:59.7]} 26... Qxe8 {[%clk 0:00:48.8]} 27. Kf2 {[%clk 0:00:59.4]} 27... Qa4
{[%clk 0:00:46.3]} 28. Qg4 {[%clk 0:00:20.5]} 28... Qa3 {[%clk 0:00:38.7]} 29.
Qf3 {[%clk 0:00:20.9]} 29... Qxc3 {[%clk 0:00:36.1]} 0-1